Workbook

Sheet List2
A1: Návrh na úpravu príjmov obce, rozpočtové opatrenie č. 7
A2: Zdroj fin. | B2: Ekonom. členenie | D2: Popis | E2: Plnenie 2019 | F2: Plnenie 2020 | G2: 2021 Schválený rozpočet | H2: Upravený RR po úprave č. 4 | I2: Návrh na úpravu č. 7 | J2: Upravený RR po úprave č. 7 | K2: Plnenie k 31.05. 2021 | L2: % uprav. schvál.
A3: 111 | B3: 311 | D3: Tuzem.granty na spol.staveb.úrad | E3: 5541.36 | F3: 6138.88 | G3: 6138.88 | H3: 5428.11 | I3: 0 | J3: =SUM(H3:I3) -> 5428.11 | K3: 5428.11 | L3: =vypocetPercent(J3,K3) -> 100
A4: 111 | B4: 311 | D4: Tuzem.granty-. poz.komunik. | E4: 183.3 | F4: 181.66 | G4: 0 | H4: 180.96 | I4: 0 | J4: =SUM(H4:I4) -> 180.96 | K4: 180.96 | L4: =vypocetPercent(J4,K4) -> 100
A5: 111 | B5: 312 001 | D5: Transféry zo ŠR - školstvo | E5: 566195 | F5: 635060 | G5: 644695 | H5: 639233 | I5: 0 | J5: 639233 | K5: 266346 | L5: =vypocetPercent(J5,K5) -> 41.66649719
A6: 111 | B6: 312 | C6: 001 | D6: Transfery zo ŠR - školské potreby | E6: 132.8 | F6: 66.4 | G6: 0 | H6: =SUM(G6) -> 0 | I6: 0 | J6: 0 | K6: 0 | L6: =vypocetPercent(J6,K6) -> 0
A7: 111 | B7: 312 | C7: 001 | D7: Transfery zo ŠR - matrika | E7: 6561.73 | F7: 7240.37 | G7: 6176.25 | H7: 5704.85 | I7: 0 | J7: 5704.85 | K7: 5704.85 | L7: 100
A8: 111 | B8: 312 | C8: 001 | D8: Transfery zo ŠR - hlás.pobyt.,regist.obyv. | E8: 1400.19 | F8: 1387.65 | G8: 0 | H8: 1382.37 | I8: 0 | J8: 1382.37 | K8: 1382.37 | L8: 100
A9: 111 | B9: 312 | C9: 001 | D9: Transfery zo ŠR - register adries | E9: 37.2 | F9: 61.2 | G9: 0 | H9: 78.8 | I9: 0 | J9: 78.8 | K9: 78.8 | L9: 100
A10: 111 | B10: 312 | C10: 001 | D10: Transfery zo ŠR - vzdelávacie poukazy | E10: 9024 | F10: 9472 | G10: 0 | H10: 2957 | I10: 0 | J10: 2957 | K10: 5914 | L10: 200
A11: 111 | B11: 312 | C11: 001 | D11: Transfery zo ŠR - strava | E11: 40285.2 | F11: 55197.6 | G11: 0 | H11: 31018.8 | I11: 0 | J11: 31018.8 | K11: 31018.8 | L11: 100
A12: 111 | B12: 312 | C12: 001 | D12: Transfery zo ŠR - rodin.prídav. | E12: 3230.62 | F12: 3842.21 | G12: 0 | H12: 681.35 | I12: 0 | J12: 681.35 | K12: 1905.35 | L12: 279.6433551
A13: 111 | B13: 312 | C13: 001 | D13: Transfery zo ŠR - rodič.príspevok | E13: 1103.5 | F13: 0 | G13: 0 | H13: 0 | I13: 0 | J13: 0 | K13: 0 | L13: 0
A14: 111 | B14: 312 | C14: 001 | D14: Transfery zo ŠR - hmotná núdza | E14: 871 | F14: 0 | G14: 0 | H14: 0 | I14: 0 | J14: 0 | K14: 0 | L14: 0
A15: 111 | B15: 312 | C15: 001 | D15: Transfery zo ŠR - asistent učiteľa. | E15: 33264 | F15: 36576 | G15: 0 | H15: 12192 | I15: 0 | J15: 12192 | K15: 24384 | L15: 200
A16: 111 | B16: 312 | C16: 001 | D16: Transfery zo ŠR - prísp.na vých, vzdel.MŠ | E16: 6128 | F16: 7538 | G16: 0 | H16: 2472 | I16: 0 | J16: 2472 | K16: 4944 | L16: 200
A17: 111 | B17: 312 | C17: 001 | D17: Transfery zo ŠR - pre žiak.zo soc.zn.prostr. | E17: 400 | F17: 400 | G17: 0 | H17: 0 | I17: 0 | J17: 0 | K17: 0 | L17: 0
A18: 111 | B18: 312 | C18: 001 | D18: Transfery zo ŠR - mimoriadne výsledky žiakov | E18: 0 | F18: 400 | G18: 0 | H18: 0 | I18: 0 | J18: 0 | K18: 0 | L18: 0
A19: 111 | B19: 312 | C19: 001 | D19: Transfery zo ŠR -digitalizácia | E19: 0 | F19: 0 | G19: 0 | H19: 2000 | I19: 0 | J19: 2000 | K19: 2000 | L19: 100
A20: 111 | B20: 312 | C20: 001 | D20: Transfery zo ŠR - učebnice | E20: 1495 | F20: 8260 | G20: 0 | H20: 0 | I20: 0 | J20: 0 | K20: 3094 | L20: BEZ schv
A21: 111 | B21: 312 | C21: 001 | D21: Transfery zo ŠR - životné prostredie | E21: 396.64 | F21: 399.47 | G21: 0 | H21: 0 | I21: 0 | J21: 0 | K21: 410.52 | L21: BEZ schv
A22: 111 | B22: 312 | C22: 001 | D22: Transfery zo ŠR - škola v prírode | E22: 3600 | F22: 0 | G22: 0 | H22: 0 | I22: 0 | J22: 0 | K22: 0 | L22: 0
A23: 111 | B23: 312 | C23: 001 | D23: Transfery zo ŠR - lyžiarsky výcvik | E23: 4050 | F23: 4650 | G23: 0 | H23: 0 | I23: 0 | J23: 0 | K23: 0 | L23: 0
A24: 111 | B24: 312 | C24: 001 | D24: Transfery zo ŠR - vojnové hroby | E24: 179.34 | F24: 199.98 | G24: 0 | H24: 0 | I24: 0 | J24: 0 | K24: 0 | L24: 0
A25: 111 | B25: 312 | C25: 001 | D25: Transfery zo ŠR - voľby do NR SR | E25: 3282.26 | F25: 2349.48 | G25: 0 | H25: 214.8 | I25: 0 | J25: 214.8 | K25: 214.8 | L25: 100
A26: 111 | B26: 312 | C26: 001 | D26: Transfery zo ŠR - voľby EP | E26: 1870.56 | F26: 0 | G26: 0 | H26: 0 | I26: 0 | J26: 0 | K26: 0 | L26: 0
A27: 111 | B27: 312 | C27: 001 | D27: Transfery zo ŠR - pohrebné služby | E27: 79.67 | F27: 159.34 | G27: 0 | H27: 0 | I27: 0 | J27: 0 | K27: 0 | L27: 0
A28: 111 | B28: 312 | C28: 001 | D28: Transfery zo ŠR - sčítanie obyv.a domov | E28: 0 | F28: 7652 | G28: 0 | H28: 6843.58 | I28: 0 | J28: 6843.58 | K28: 6843.58 | L28: 100
A29: 111 | B29: 312 | C29: 001 | D29: Transfery z VÚC podpora športu | E29: 1100 | F29: 0 | G29: 0 | H29: 0 | I29: 0 | J29: 0 | K29: 0 | L29: 0
A30: 111 | B30: 312 | C30: 001 | D30: Transfery zo ŠR - Fond na podporu umenia | E30: 9500 | F30: 1106.94 | G30: 0 | H30: 0 | I30: 0 | J30: 0 | K30: 0 | L30: 0
A31: 111 | B31: 312 | C31: 001 | D31: Transfery zo ŠR - FNPU knižnica | E31: 0 | F31: 2000 | G31: 0 | H31: 0 | I31: 0 | J31: 0 | K31: 0 | L31: 0
A32: 111 | B32: 312 | C32: 001 | D32: Transfery zo ŠR - MV SR COVID | E32: 0 | F32: 8660.33 | G32: 0 | H32: 61920 | I32: 0 | J32: 61920 | K32: 115580 | L32: 186.6602067
A33: 111 | B33: 312 | C33: 001 | D33: Dotácia z NSK okná OTJ | E33: 0 | F33: 1600 | G33: 0 | H33: 0 | I33: 0 | J33: 0 | K33: 0 | L33: 0
A34: 111 Zdroje zo štátneho rozpočtu | E34: =SUM(E3:E33) -> 699911.37 | F34: =SUM(F3:F33) -> 800599.51 | G34: =SUM(G3:G33) -> 657010.13 | H34: =SUM(H3:H33) -> 772307.62 | I34: =SUM(I3:I33) -> 0 | J34: 772307.62 | K34: =SUM(K3:K33) -> 475430.14 | L34: 61.55968525
A35: 1AB1 | B35: 331 | C35: 001 | D35: Transfery z EÚ - kompostéry | E35: 127063.44 | F35: 0 | G35: 0 | H35: 0 | I35: 0 | J35: 0 | K35: 0 | L35: 0
A36: 1AB2 | B36: 312 | C36: 001 | D36: Transfery so ŠR - kompostéry | E36: 14948.64 | F36: 0 | G36: 0 | H36: 0 | I36: 0 | J36: 0 | K36: 0 | L36: 0
A37: 1AB1 a 1AB2 Kohézny fond | E37: =SUM(E35:E36) -> 142012.08 | F37: =SUM(F35:F36) -> 0 | G37: =SUM(G35:G36) -> 0 | H37: =SUM(H35:H36) -> 0 | I37: =SUM(I35:I36) -> 0 | J37: 0 | K37: =SUM(K35:K36) -> 0 | L37: 0
A38: 1AC1 | B38: 312 | C38: 001 | D38: Projekt - asist.učitaľa 13,6502 % - ESF | E38: 0 | F38: 0 | G38: 0 | H38: 2857.84 | I38: 0 | J38: 2857.84 | K38: 7992.17 | L38: 279.6577135
A39: 1AC2 | B39: 312 | C39: 001 | D39: Projekt - asist.učitaľa 11,4084 % - ESF | E39: 0 | F39: 0 | G39: 0 | H39: 2388.49 | I39: 0 | J39: 2388.49 | K39: 3886.08 | L39: 162.7002834
A40: 1AC3 | B40: 312 | C40: 001 | D40: Projekt - asist.učitaľa 5,9951 % - ESF | E40: 0 | F40: 0 | G40: 0 | H40: 1255.15 | I40: 0 | J40: 1255.15 | K40: 2162.13 | L40: 172.260686
A41: 3AC1 | B41: 312 | C41: 001 | D41: Projekt - asist.učitaľa 63,4193 % - ESF | E41: 0 | F41: 6346.88 | G41: 0 | H41: 13277.64 | I41: 0 | J41: 13277.64 | K41: 17446.12 | L41: 131.3947358
A44: Zdroj fin. | B44: Ekonom. členenie | D44: Popis | E44: Plnenie 2019 | F44: Plnenie 2020 | G44: 2021 Schválený rozpočet | H44: Upravený RR po úprave č. 4 | I44: Návrh na úpravu č. 7 | J44: Upravený RR po úprave č. 7 | K44: Plnenie k 31.05. 2021 | L44: % uprav. schvál.
A45: 3AC2 | B45: 312 | C45: 001 | D45: Projekt - asist.učitaľa 2,1921 % - ESF | E45: 0 | F45: 1120.02 | G45: 0 | H45: 458.94 | I45: 0 | J45: =SUM(H45:I45) -> 458.94 | K45: 603.02 | L45: =vypocetPercent(J45,K45) -> 131.394082
A46: 3AC3 | B46: 312 | C46: 001 | D46: Projekt - asist.učitaľa 3,3349 % - ESF | E46: 0 | F46: 768.35 | G46: 0 | H46: 698.21 | I46: 0 | J46: =SUM(H46:I46) -> 698.21 | K46: 917.41 | L46: =vypocetPercent(J46,K46) -> 131.3945661
A47: 3AC1, 3AC2, 3AC3 Európsky sociálny fond | E47: =SUM(E41:E46) -> 0 | F47: =SUM(F38:F46) -> 8235.25 | G47: =SUM(G41:G46) -> 0 | H47: =SUM(H38:H46) -> 20936.27 | I47: =SUM(I38:I46) -> 0 | J47: =SUM(H47:I47) -> 20936.27 | K47: =SUM(K38:K46) -> 33006.93 | L47: =vypocetPercent(J47,K47) -> 157.6543004
A48: 72c | B48: 292 | C48: 027 | D48: Vecné bremeno ZsDi | E48: 2447.5 | F48: 2812 | G48: 0 | H48: 0 | I48: 0 | J48: 0 | K48: 0 | L48: 0
A49: 72c | B49: 311 | D49: Tuz. B. granty- Dobrovoľná pož.och. | E49: 3000 | F49: 3000 | G49: 0 | H49: 0 | I49: 0 | J49: 0 | K49: 3000 | L49: BEZ schv
A50: 72j | D50: Tuz. B. granty- Dobrovoľná pož.och. | E50: 0 | F50: 0 | G50: 0 | H50: 0 | I50: 0 | J50: 0 | K50: 0 | L50: 0
A51: 72c Od iných sub., napr.formou dotácie alebo grantu | E51: =SUM(E48:E50) -> 5447.5 | F51: =SUM(F48:F50) -> 5812 | G51: 0 | H51: 0 | I51: =SUM(I48:I50) -> 0 | J51: 0 | K51: =SUM(K48:K50) -> 3000 | L51: BEZ schv
A52: 72h | B52: 292 | D52: Tuz. B. transf.- úrad práce refundácia | E52: 17799.33 | F52: 4515 | G52: 0 | H52: 0 | I52: 0 | J52: 0 | K52: 0 | L52: 0
A53: 72h | B53: 312 | D53: Tuz. B. transf.- úrad práce | E53: 0 | F53: 8575.44 | G53: 0 | H53: 469.62 | I53: 0 | J53: 469.62 | K53: 469.62 | L53: 100
A54: 72h Od úradu práce, soc.v. a rodiny podľa os. predp. | E54: =SUM(E52:E53) -> 17799.33 | F54: =SUM(F52:F53) -> 13090.44 | G54: =SUM(G52:G53) -> 0 | H54: 469.62 | I54: 0 | J54: 469.62 | K54: =SUM(K52:K53) -> 469.62 | L54: 100
A55: 72b | B55: 312 | C55: 011 | D55: Transf.od združenia TUNSKO | E55: 24400 | F55: 33000 | G55: 23000 | H55: 23000 | I55: -3400 | J55: 19600 | K55: 0 | L55: 0
A56: 72b Iné zdroje na základe zmluvy - združenie TUNSKO | E56: =SUM(E55) -> 24400 | F56: =SUM(F55) -> 33000 | G56: 23000 | H56: 23000 | I56: -3400 | J56: 19600 | K56: 0 | L56: 0
A57: 45 | B57: 312 | C57: 001 | D57: Transfery zo ŠR - Progr.na podporu dediny | E57: 5000 | F57: 0 | G57: 0 | H57: 0 | I57: 0 | J57: 0 | K57: 0 | L57: 0
A58: 45 Vlastné zdroje zo štátneho fondu | E58: =SUM(E57) -> 5000 | F58: 0 | G58: =SUM(G57) -> 0 | H58: =SUM(H57) -> 0 | I58: =SUM(I57) -> 0 | J58: 0 | K58: 0 | L58: 0
A59: 41 | B59: 111 | C59: 003 | D59: Výnos dane z príjm.poukáz.úz.samosp. | E59: 1392065.76 | F59: 1416939.89 | G59: 1380000 | H59: 1380000 | I59: 0 | J59: =SUM(H59:I59) -> 1380000 | K59: 591180.77 | L59: =vypocetPercent(J59,K59) -> 42.83918623
A60: 41 | B60: 121 | C60: 001 | D60: Daň z pozemkov | E60: 149840.1 | F60: 152575.1 | G60: 165000 | H60: 165000 | I60: 0 | J60: 165000 | K60: 30319.32 | L60: =vypocetPercent(J60,K60) -> 18.37534545
A61: 41 | B61: 121 | C61: 002 | D61: Zo stavieb | E61: 49216.41 | F61: 40178.15 | G61: 46300 | H61: 46300 | I61: 0 | J61: 46300 | K61: 31083.95 | L61: 67.13596112
A62: 41 | B62: 121 | C62: 003 | D62: Z bytov | E62: 0 | F62: 547.53 | G62: 1100 | H62: 1100 | I62: 0 | J62: 1100 | K62: 526.24 | L62: 47.84
A63: 41 | B63: 133 | C63: 001 | D63: Za psa | E63: 3412 | F63: 3183.86 | G63: 3400 | H63: 3400 | I63: 0 | J63: 3400 | K63: 2250.53 | L63: 66.19205882
A64: 41 | B64: 133 | C64: 006 | D64: Daň za ubytovanie | E64: 1762.2 | F64: 1139.49 | G64: 1300 | H64: 1300 | I64: 0 | J64: 1300 | K64: 62.7 | L64: 4.823076923
A65: 41 | B65: 133 | C65: 012 | D65: Za užívanie verejného priestranstva | E65: 2050.75 | F65: 881.28 | G65: 1000 | H65: 1000 | I65: 0 | J65: 1000 | K65: 214.52 | L65: 21.452
A66: 41 | B66: 133 | C66: 013 | D66: Za komunál.odpady | E66: 36437.4 | F66: 52784.8 | G66: 54000 | H66: 54000 | I66: 0 | J66: 54000 | K66: 24016.3 | L66: 44.47462963
A67: 41 | B67: 212 | C67: 002 | D67: Príjmy z prenajatých pozemkov | E67: 14711.25 | F67: 27113.33 | G67: 19500 | H67: 19500 | I67: 0 | J67: 19500 | K67: 17082.52 | L67: 87.60266667
A68: 41 | B68: 212 | C68: 003 | D68: Z prenajatých budov a ost.zariadení | E68: 57011.8 | F68: 57927.3 | G68: 57400 | H68: 58208.52 | I68: 0 | J68: 58208.52 | K68: 21429.9 | L68: 36.8157445
A69: 41 | B69: 212 | C69: 004 | D69: Prenájom strojov, prístrojov | E69: 11 | F69: 1 | G69: 0 | H69: 0 | I69: 0 | J69: 0 | K69: 0 | L69: 0
A70: 41 | B70: 221 | C70: 004 | D70: Ostatné poplatky- rybár.lístky | E70: 648.5 | F70: 562 | G70: 600 | H70: 600 | I70: 200 | J70: 800 | K70: 723 | L70: 90.375
A71: 41 | B71: 221 | C71: 004 | D71: Ostatné poplatky | E71: 18010.74 | F71: 21627.55 | G71: 15000 | H71: 15000 | I71: 0 | J71: 15000 | K71: 5288 | L71: 35.25333333
A72: 41 | B72: 222 | C72: 003 | D72: Pokuty a penále | E72: 334.81 | F72: 244.94 | G72: 0 | H72: 30 | I72: 670 | J72: 700 | K72: 360 | L72: 51.42857143
A73: 41 | B73: 223 | C73: 001 | D73: Poplatky a platby - za separovaný zber | E73: 215.44 | F73: 170.4 | G73: 0 | H73: 0 | I73: 0 | J73: 0 | K73: 0 | L73: 0
A74: 41 | B74: 223 | C74: 001 | D74: Poplatky a platby - znalecké posudky | E74: 0 | F74: 457 | G74: 0 | H74: 216 | I74: 0 | J74: 216 | K74: 216 | L74: 100
A75: 41 | B75: 223 | C75: 001 | D75: Za služby domu smútku | E75: 576.08 | F75: 484.94 | G75: 500 | H75: 500 | I75: 700 | J75: 1200 | K75: 549.86 | L75: 45.82166667
A76: 41 | B76: 223 | C76: 001 | D76: Za relácie v miestnom rozhlase | E76: 1039.32 | F76: 763.6 | G76: 800 | H76: 800 | I76: 0 | J76: 800 | K76: 202.46 | L76: 25.3075
A77: 41 | B77: 223 | C77: 001 | D77: Za predaj suvenír., novín | E77: 3566.55 | F77: 3187.9 | G77: 3500 | H77: 3500 | I77: 0 | J77: 3500 | K77: 2424.3 | L77: 69.26571429
A78: 41 | B78: 223 | C78: 001 | D78: Za opatrovateľskú službu | E78: 2004.64 | F78: 1640.12 | G78: 1800 | H78: 1800 | I78: 0 | J78: 1800 | K78: 618.57 | L78: 34.365
A79: 41 | B79: 223 | C79: 001 | D79: Za poskytnutie služieb obyvateľstvu | E79: 14890.29 | F79: 17416.02 | G79: 18000 | H79: 18000 | I79: 0 | J79: 18000 | K79: 2810.26 | L79: 15.61255556
A80: 41 | B80: 223 | C80: 001 | D80: Za poskytnutie služieb - zb.dvor | E80: 634.91 | F80: 2851.68 | G80: 2000 | H80: 2000 | I80: 2000 | J80: 4000 | K80: 2689.69 | L80: 67.24225
A81: 41 | B81: 223 | C81: 001 | D81: Z kultúrnej činnosti | E81: 157.43 | F81: 982.26 | G81: 500 | H81: 500 | I81: 0 | J81: 500 | K81: 0 | L81: 0
A82: 41 | B82: 223 | C82: 001 | D82: Cintorínske popl. | E82: 4782.61 | F82: 4404.87 | G82: 3000 | H82: 3000 | I82: 1500 | J82: 4500 | K82: 2131.38 | L82: 47.364
A83: 41 | B83: 223 | C83: 001 | D83: Poplatky a platby za hráčov OTJ | E83: 1100 | F83: 0 | G83: 0 | H83: 0 | I83: 0 | J83: 0 | K83: 0 | L83: 0
A84: 41 | B84: 223 | C84: 001 | D84: Poplatky za reklamu v novinách | E84: 36.31 | F84: 0 | G84: 0 | H84: 0 | I84: 0 | J84: 0 | K84: 0 | L84: 0
A85: 41 | B85: 223 | C85: 001 | D85: Platby z predaja vytriedených komodít | E85: 0 | F85: 0 | G85: 0 | H85: 0 | I85: 10000 | J85: 10000 | K85: 0 | L85: 0
A86: 41 | B86: 223 | C86: 001 | D86: Platby NOWAS - na refund. tried.zberu | E86: 0 | F86: 0 | G86: 0 | H86: 0 | I86: 34386 | J86: 34386 | K86: 0 | L86: 0
A89: Zdroj fin. | B89: Ekonom. členenie | D89: Popis | E89: Plnenie 2019 | F89: Plnenie 2020 | G89: 2021 Schválený rozpočet | H89: Upravený RR po úprave č. 4 | I89: Návrh na úpravu č. 7 | J89: Upravený RR po úprave č. 7 | K89: Plnenie k 31.05. 2021 | L89: % uprav. schvál.
A90: 41 | B90: 223 | C90: 001 | D90: Platby RECOBAL - na refund. Sep.zberu | E90: 213790 | F90: 262487.43 | G90: 240000 | H90: 240000 | I90: -180951.99 | J90: =SUM(H90:I90) -> 59048.01 | K90: 59048.01 | L90: =vypocetPercent(J90,K90) -> 100
A91: 41 | B91: 223 | C91: 001 | D91: Platby ENVI PAK - rok 2018/RECOBAL | E91: 21379 | F91: 42758 | G91: 0 | H91: 0 | I91: 0 | J91: =SUM(H91:I91) -> 0 | K91: 0 | L91: =vypocetPercent(J91,K91) -> 0
A92: 41 | B92: 223 | C92: 001 | D92: Platby a popl.za služby-drvenie,pílenie,bio | E92: 0 | F92: 2615.42 | G92: 0 | H92: 1500 | I92: 2500 | J92: =SUM(H92:I92) -> 4000 | K92: 1798.9 | L92: =vypocetPercent(J92,K92) -> 44.9725
A93: 41 | B93: 223 | C93: 003 | D93: Poplatky a platby z stravné | E93: 0 | F93: 310.4 | G93: 0 | H93: 0 | I93: 0 | J93: 0 | K93: 0 | L93: 0
A94: 41 | B94: 223 | C94: 004 | D94: Platby za prebytočný hn.majetok,SN | E94: 173.4 | F94: 331.5 | G94: 390 | H94: 390 | I94: 0 | J94: 390 | K94: 97.5 | L94: 25
A95: 41 | B95: 242 | D95: Úroky z vkladov | E95: 35.94 | F95: 85.69 | G95: 0 | H95: 0 | I95: 0 | J95: 0 | K95: 0 | L95: 0
A96: 41 | B96: 292 | C96: 006 | D96: Príjmy z náhrad poist.plnenia | E96: 0 | F96: 406.61 | G96: 0 | H96: 891.5 | I96: 0 | J96: 891.5 | K96: 891.5 | L96: 100
A97: 41 | B97: 292 | C97: 008 | D97: Z výťažkov z lotérií a iných hier | E97: 2141.27 | F97: 586.55 | G97: 700 | H97: 700 | I97: 0 | J97: 700 | K97: 0.82 | L97: 0.1171428571
A98: 41 | B98: 292 | C98: 012 | D98: Príjmy z dobropisov | E98: 9773.07 | F98: 8720.81 | G98: 0 | H98: 2657.46 | I98: 24.87 | J98: 2682.33 | K98: 2682.33 | L98: 100
A99: 41 | B99: 292 | C99: 017 | D99: Z vratiek- úrad práce,SP | E99: 13568.88 | F99: 13097.29 | G99: 0 | H99: 0 | I99: 113.59 | J99: 113.59 | K99: 113.59 | L99: 100
A100: 41 | B100: 292 | C100: 019 | D100: Príjmy z refundácie N min.rokov | E100: 286.65 | F100: 0 | G100: 0 | H100: 0 | I100: 0 | J100: 0 | K100: 0 | L100: 0
A101: 72c | B101: 292 | C101: 027 | D101: Ostatné príjmy - vecné bremeno | E101: 308.1 | F101: 0 | G101: 0 | H101: 0 | I101: 0 | J101: 0 | K101: 0 | L101: 0
A102: 41 Vlastné príjmy obcí | E102: =SUM(E59:E101) -> 2015972.61 | F102: =SUM(F59:F101) -> 2139464.71 | G102: =SUM(G59:G101) -> 2015790 | H102: =SUM(H59:H101) -> 2021893.48 | I102: =SUM(I59:I101) -> -128857.53 | J102: 1893035.95 | K102: =SUM(K59:K101) -> 800812.92 | L102: 42.30310153
A103: BEŽNÝ ROZPOČET | E103: =SUM(E102,E34,E54,E58,E56,E51,E37,E47) -> 2910542.89 | F103: =SUM(F102,F34,F54,F51,F56,F47) -> 3000201.91 | G103: =SUM(G102,G34,G54,G58,G56,G51,G37,G47) -> 2695800.13 | H103: =SUM(H102,H34,H54,H58,H56,H51,H37,H47) -> 2838606.99 | I103: =SUM(I102,I34,I54,I58,I56,I51,I37,I47) -> -132257.53 | J103: 2706349.46 | K103: =SUM(K102,K34,K54,K51,K56,K47) -> 1312719.61 | L103: 48.50517752
A104: 3AB2 | B104: 322 | C104: 001 | D104: Od zahr. subj. zo ŠR.-Intenz.tr.zb. | E104: 9943.63 | F104: 0 | G104: 0 | H104: 0 | I104: 0 | J104: =SUM(H104:I104) -> 0 | K104: 0 | L104: =vypocetPercent(J104,K104) -> 0
A105: 3AB1 | B105: 332 | C105: 001 | D105: Od zahr. subj. EÚ-Intenz.tr.zb. | E105: 84520.83 | F105: 0 | G105: 0 | H105: 0 | I105: 0 | J105: =SUM(H105:I105) -> 0 | K105: 0 | L105: =vypocetPercent(J105,K105) -> 0
A106: 1AA1 | B106: 332 | C106: 001 | D106: Od zahr.subj.- projekt rozšírenie MŠ | E106: 29181.3 | F106: 0 | G106: 0 | H106: 0 | I106: 0 | J106: 0 | K106: 0 | L106: 0
A107: 1AA2 | B107: 332 | C107: 001 | D107: Od zahr.subj.- projekt rozšírenie MŠ | E107: 3433.09 | F107: 0 | G107: 0 | H107: 0 | I107: 0 | J107: 0 | K107: 0 | L107: 0
A108: 43 | B108: 231 | D108: Príjem z predaja kapit.aktív | E108: 0 | F108: 650 | G108: 0 | H108: 0 | I108: 0 | J108: 0 | K108: 0 | L108: 0
A109: 43 | B109: 233 | C109: 001 | D109: Príjem z predaja pozemkov | E109: 25251 | F109: 9510 | G109: 5000 | H109: 5000 | I109: 0 | J109: 5000 | K109: 2200 | L109: 44
A110: KAPITÁLOVÝ ROZPOČET | E110: =SUM(E104:E109) -> 152329.85 | F110: =SUM(F104:F109) -> 10160 | G110: 5000 | H110: 5000 | I110: 0 | J110: 5000 | K110: 2200 | L110: 44
A111: 131I | B111: 453 | D111: Prostr. z pred.r.zap.do prí.- dot.FPU | E111: 138.99 | F111: 0 | G111: 0 | H111: 0 | I111: 0 | J111: 0 | K111: 0 | L111: 0
A112: 131J | B112: 453 | D112: Prostr. z pred.r.zap.do prí.- dot.FPU | E112: 0 | F112: 20182.8 | G112: 0 | H112: 0 | I112: 0 | J112: 0 | K112: 0 | L112: 0
A113: 72c | B113: 453 | D113: Prostr.z predch.r. - ÚPSVaR | E113: 0 | F113: 0 | G113: 0 | H113: 8575.44 | I113: 0 | J113: 8575.44 | K113: 8575.44 | L113: 100
A114: 111 | B114: 453 | D114: Prostr.z predch.r. - ÚPSVaR strava | E114: 0 | F114: 0 | G114: 0 | H114: 33027.6 | I114: 0 | J114: 33027.6 | K114: 33027.6 | L114: 100
A115: 131K | B115: 453 | D115: Prostr.z predch.r. - sčítanie domov | E115: 0 | F115: 0 | G115: 0 | H115: 4807 | I115: 0 | J115: 4807 | K115: 4807 | L115: 100
A116: 46 | B116: 453 | D116: Prostr.z predch.rokov | E116: 0 | F116: 0 | G116: 0 | H116: 0 | I116: 81490 | J116: 81490 | K116: 0 | L116: 0
A117: 46 | B117: 453 | D117: Prostriedky z predch. rokov - fond opráv | E117: 1595 | F117: 1987.94 | G117: 0 | H117: 0 | I117: 0 | J117: 0 | K117: 0 | L117: 0
A118: 46 | B118: 454 | C118: 001 | D118: Z rezervného fondu obce | E118: 20976 | F118: 9329.36 | G118: 0 | H118: 0 | I118: 0 | J118: 0 | K118: 0 | L118: 0
A119: 46 | B119: 454 | C119: 001 | D119: Z rezervného fondu obce - prístrešok cint. | E119: 0 | F119: 0 | G119: 15000 | H119: 15000 | I119: 0 | J119: 15000 | K119: 0 | L119: 0
A120: 46 | B120: 454 | C120: 001 | D120: Z rezervného fondu obce - ÚP | E120: 0 | F120: 0 | G120: 46000 | H120: 46000 | I120: -16000 | J120: 30000 | K120: 0 | L120: 0
A121: 20 | B121: 514 | C121: 002 | D121: MF SR- návratná fin.výpomoc | E121: 0 | F121: 78205 | G121: 0 | H121: 0 | I121: 0 | J121: 0 | K121: 0 | L121: =vypocetPercent(J121,K121) -> 0
A122: FINANČNÉ OPERÁCIE | E122: =SUM(E111:E121) -> 22709.99 | F122: =SUM(F111:F121) -> 109705.1 | G122: =SUM(G111:G121) -> 61000 | H122: =SUM(H111:H121) -> 107410.04 | I122: =SUM(I111:I121) -> 65490 | J122: 172900.04 | K122: =SUM(K111:K121) -> 46410.04 | L122: 26.84212219
A123: CELKOM PRÍJMY | E123: =SUM(E110,E103,E122) -> 3085582.73 | F123: =SUM(F110,F103,F122) -> 3120067.01 | G123: =SUM(G110,G103,G122) -> 2761800.13 | H123: =SUM(H110,H103,H122) -> 2951017.03 | I123: =SUM(I110,I103,I122) -> -66767.53 | J123: 2884249.5 | K123: =SUM(K110,K103,K122) -> 1361329.65 | L123: 47.19874789
D125: Príjmy ZŠ s MŠ | E125: 71000 | F125: 81000 | G125: 81000 | J125: 81000 | K125: 81000
D126: Príjmy spolu | E126: =SUM(,E123,E125) -> 3156582.73 | F126: =SUM(,F123,F125) -> 3201067.01 | G126: 2842800.13 | J126: 2965249.5 | K126: 1442329.65
D127: Príjmy ZŠ s MŠ | E127: 77728.34 | F127: 75323.22 | G127: 75000 | H127: 79230.27 | I127: 2636.72 | J127: =SUM(H127:I127) -> 81866.99 | K127: 11954.22 | L127: =vypocetPercent(J127,K127) -> 14.60200259
D128: SPOLU OBEC A RO | E128: =SUM(E127,E123) -> 3163311.07 | F128: =SUM(F127,F123) -> 3195390.23 | G128: 2836800.13 | H128: 3030247.3 | I128: -64130.81 | J128: =SUM(H128:I128) -> 2966116.49 | K128: 1373283.87 | L128: =vypocetPercent(J128,K128) -> 46.29905382

Sheet List3
A3: 6bj | B3: N | C3: FO | D3: Rozpočet | E3: na rok
A4: Bachorecová | B4: 155.1 | C4: 20.31 | D4: =SUM(B4-C4) -> 134.79 | E4: =SUM(D4*12) -> 1617.48
A5: Kovačiková | B5: 150.1 | C5: 20.31 | D5: 129.79 | E5: 1557.48
A6: Samuel | B6: 155.18 | C6: 20.31 | D6: 134.87 | E6: 1618.44
A7: Bábinová | B7: 150.1 | C7: 20.31 | D7: 129.79 | E7: 1557.48
A8: Ježo | B8: 160 | C8: 20.31 | D8: 139.69 | E8: 1676.28
A9: Kastlová | B9: 150.1 | C9: 20.31 | D9: 129.79 | E9: 1557.48
A10: Spolu | B10: =SUM(B4:B9) -> 920.58 | C10: =SUM(C4:C9) -> 121.86 | D10: =SUM(D4:D9) -> 798.72 | E10: =SUM(E4:E9) -> 9584.64
A13: 8bj | B13: N | C13: FO | D13: Rozpočet | E13: na rok
A14: Tantoš | B14: 197.57 | C14: 17.07 | D14: =SUM(B14-C14) -> 180.5 | E14: =SUM(D14*12) -> 2166
A15: Mitro | B15: 263.23 | C15: 22.73 | D15: =SUM(B15-C15) -> 240.5 | E15: =SUM(D15*12) -> 2886
A16: Rácová | B16: 200.86 | C16: 18.36 | D16: 182.5 | E16: 2190
A17: Farkašová | B17: 221.55 | C17: 21.05 | D17: 200.5 | E17: 2406
A18: Jurík | B18: 193.9 | C18: 17.4 | D18: 176.5 | E18: 2118
A19: Valachovičová | B19: 217.42 | C19: 19.92 | D19: 197.5 | E19: 2370
A20: Dubcová | B20: 133.46 | C20: 9.96 | D20: 123.5 | E20: 1482
A21: Chlapcová | B21: 220.88 | C21: 20.38 | D21: 200.5 | E21: 2406
B22: =SUM(B14:B21) -> 1648.87 | C22: =SUM(C14:C21) -> 146.87 | D22: =SUM(D14:D21) -> 1502 | E22: =SUM(E14:E21) -> 18024
A24: 9bj | B24: N | C24: FO | D24: Rozpočet | E24: na rok
A25: Kaňáková | B25: 138.64 | C25: 19.07 | D25: =SUM(B25-C25) -> 119.57 | E25: =SUM(D25*12) -> 1434.84
A26: Smreček | B26: 139.55 | C26: 18.99 | D26: =SUM(B26-C26) -> 120.56 | E26: =SUM(D26*12) -> 1446.72
A27: Bábinová | B27: 127.43 | C27: 16.36 | D27: 111.07 | E27: 1332.84
A28: Balogh | B28: 125.6 | C28: 15.93 | D28: 109.67 | E28: 1316.04
A29: Olvecký | B29: 140.21 | C29: 18.99 | D29: 121.22 | E29: 1454.64
A30: Ulický | B30: 130.26 | C30: 18.99 | D30: 111.27 | E30: 1335.24
A31: Hatinová | B31: 135.73 | C31: 18.99 | D31: 116.74 | E31: 1400.88
A32: Mančík | B32: 112.32 | C32: 15.93 | D32: 96.39 | E32: 1156.68
A33: Podbehlý | B33: 127.91 | C33: 15.93 | D33: 111.98 | E33: 1343.76
B34: =SUM(B25:B33) -> 1177.65 | C34: =SUM(C25:C33) -> 159.18 | D34: =SUM(D25:D33) -> 1018.47 | E34: =SUM(E25:E33) -> 12221.64
A36: byt ZŠ | B36: 66.4 | E36: =SUM(B36*12) -> 796.8
A37: Spolu | D37: =SUM(D10,D22,D34) -> 3319.19 | E37: =SUM(E10,E22,E34,E36) -> 40627.08
